fUST/lending_fUST_20241219
["ID","MTS","AMOUNT","RATE_DAILY","PERIOD"]
[345988798,1734606646973,-80134.24803859,0.00025607,10]
[345988800,1734606779451,501.0,0.000248,120]
[345988801,1734606795266,500.0,0.00025,120]
[345988802,1734606815532,850.0,0.00025,120]
[345988806,1734607406056,171.75543,0.00013973,2]
[345988809,1734607642085,-329.92685442,0.000179,2]
[345988874,1734607838429,-1651.3232231,0.000179,2]
[345988897,1734607843381,-235.2424736,0.000179,2]
[345988898,1734607843390,-5163.78649432,0.00018,2]
[345988899,1734607843399,-169.571947,0.00019842,2]
[345988900,1734607843408,-453.4467455,0.00019892,2]
[345988901,1734607843418,-150.0,0.0002,2]
[345988902,1734607843428,-300.0,0.00020886,2]
[345988903,1734607843438,-300.0,0.00020886,2]
[345988904,1734607843448,-2366.0,0.00020887,2]
[345988905,1734607843457,-150.0,0.00020887,2]
[345988906,1734607843466,-190.361,0.00020903,2]
[345988907,1734607843476,-24900.0,0.00021786,2]
[345988908,1734607843485,-2201.1881139,0.00022006,2]
[345988909,1734607843494,-219.58943441,0.0002201,16]
[345988910,1734607843503,-420.0,0.00022722,2]
[345988911,1734607843512,-420.0,0.00022975,2]
[345988912,1734607843521,-263.09502366,0.00023,2]
[345988913,1734607843530,-153.0,0.00023221,2]
[345988914,1734607843540,-153.0,0.00023221,2]
[345988915,1734607843549,-153.0,0.00023221,2]
[345988916,1734607843559,-153.0,0.00023221,2]
[345988917,1734607843569,-153.0,0.00023221,2]
[345988918,1734607843578,-153.0,0.00023221,2]
[345988919,1734607843587,-153.0,0.00023221,2]
[345988920,1734607843596,-153.0,0.00023221,2]
[345988921,1734607843605,-153.0,0.00023221,2]
[345988922,1734607843615,-153.0,0.00023221,2]
[345988923,1734607843624,-153.0,0.00023221,2]
[345988924,1734607843633,-221.955798,0.00023562,2]
[345988925,1734607843642,-2366.0,0.00023887,2]
[345988926,1734607843652,-150.0,0.00023887,2]
[345988927,1734607843661,-194.28559901,0.000239,2]
[345988928,1734607843670,-151.638,0.00023912,2]
[345988929,1734607843679,-153.0,0.0002394,2]
[345988930,1734607843687,-153.0,0.0002394,2]
[345988931,1734607843696,-376.62497569,0.00023999,2]
[345988932,1734607843706,-348.16470449,0.00023999,2]
[345988933,1734607843715,-507.22424755,0.00023999,2]
[345988934,1734607843725,-500.0,0.00023999,2]
[345988935,1734607843735,-500.0,0.00023999,2]
[345988936,1734607843744,-256.31090834,0.00023999,2]
[345988937,1734607843753,-500.0,0.00023999,2]
[345988938,1734607843762,-500.76203414,0.00023999,2]
[345988939,1734607843771,-500.0,0.00023999,2]
[345988940,1734607843781,-500.0,0.00023999,2]
[345988941,1734607843790,-500.0,0.00023999,2]
[345988942,1734607843799,-500.0,0.00023999,2]
[345988943,1734607843808,-500.0,0.00023999,2]
[345988944,1734607843819,-500.0,0.00023999,2]
[345988945,1734607843827,-500.0,0.00023999,2]
[345988946,1734607843837,-500.0,0.00023999,2]
[345988947,1734607843847,-324.79548526,0.00023999,2]
[345988948,1734607843856,-500.0,0.00023999,2]
[345988949,1734607843866,-500.0,0.00023999,2]
[345988950,1734607843875,-500.0,0.00023999,2]
[345988951,1734607843884,-500.0,0.00023999,2]
[345988952,1734607843894,-500.0,0.00023999,2]
[345988953,1734607843904,-500.0,0.00023999,2]
[345988954,1734607843913,-500.0,0.00023999,2]
[345988955,1734607843923,-500.0,0.00023999,2]
[345988956,1734607843932,-500.0,0.00023999,2]
[345988957,1734607843942,-500.0,0.00023999,2]
[345988958,1734607843951,-500.0,0.00023999,2]
[345988959,1734607843961,-500.0,0.00023999,2]
[345988960,1734607843970,-500.0,0.00023999,2]
[345988961,1734607843979,-603.08711789,0.00023999,2]
[345988962,1734607843989,-500.0,0.00023999,2]
[345988963,1734607843998,-500.0,0.00023999,2]
[345988964,1734607844007,-500.0,0.00023999,2]
[345988965,1734607844159,-500.0,0.00023999,2]
[345988966,1734607844173,-500.0,0.00023999,2]
[345988967,1734607844183,-500.0,0.00023999,2]
[345988968,1734607844195,-500.0,0.00023999,2]
[345988969,1734607844204,-500.0,0.00023999,2]
[345988970,1734607844214,-500.0,0.00023999,2]
[345988971,1734607844225,-500.0,0.00023999,2]
[345988972,1734607844235,-500.0,0.00023999,2]
[345988973,1734607844245,-500.0,0.00023999,2]
[345988974,1734607844255,-500.0,0.00023999,2]
[345988975,1734607844264,-500.0,0.00023999,2]
[345988976,1734607844274,-500.0,0.00023999,2]
[345988977,1734607844283,-500.0,0.00023999,2]
[345988978,1734607844292,-500.0,0.00023999,2]
[345988979,1734607844302,-500.0,0.00023999,2]
[345988980,1734607844312,-500.0,0.00023999,2]
[345988981,1734607844321,-500.0,0.00023999,2]
[345988982,1734607844331,-500.0,0.00023999,2]
[345988983,1734607844341,-500.0,0.00023999,2]
[345988984,1734607844350,-500.0,0.00023999,2]
[345988985,1734607844359,-500.0,0.00023999,2]
[345988986,1734607844369,-500.0,0.00023999,2]
[345988987,1734607844379,-500.0,0.00023999,2]
[345988988,1734607844388,-500.0,0.00023999,2]
[345988989,1734607844397,-500.0,0.00023999,2]
[345988990,1734607844406,-500.0,0.00023999,2]
[345988991,1734607844416,-500.0,0.00023999,2]
[345988992,1734607844425,-500.0,0.00023999,2]
[345988993,1734607844434,-500.0,0.00023999,2]
[345988994,1734607844444,-500.0,0.00023999,2]
[345988995,1734607844453,-500.0,0.00023999,2]
[345988996,1734607844463,-500.0,0.00023999,2]
[345988997,1734607844472,-500.0,0.00023999,2]
[345988998,1734607844481,-500.0,0.00023999,2]
[345988999,1734607844491,-500.0,0.00023999,2]
[345989000,1734607844501,-500.0,0.00023999,2]
[345989001,1734607844511,-500.0,0.00023999,2]
[345989002,1734607844520,-500.0,0.00023999,2]
[345989003,1734607844530,-500.0,0.00023999,2]
[345989004,1734607844540,-500.0,0.00023999,2]
[345989005,1734607844550,-500.0,0.00023999,2]
[345989006,1734607844560,-500.0,0.00023999,2]
[345989007,1734607844569,-500.0,0.00023999,2]
[345989008,1734607844578,-500.0,0.00023999,2]
[345989009,1734607844588,-500.0,0.00023999,2]
[345989010,1734607844597,-500.0,0.00023999,2]
[345989011,1734607844607,-500.0,0.00023999,2]
[345989012,1734607844616,-398.58906029,0.00023999,2]
[345989013,1734607844626,-500.0,0.00023999,2]
[345989014,1734607844635,-500.0,0.00023999,2]
[345989015,1734607844645,-500.0,0.00023999,2]
[345989016,1734607844654,-604.03,0.00024,2]
[345989017,1734607844664,-1559428.46040429,0.00024,4]
[345989018,1734607844674,-351.9620625,0.00024023,2]
[345989019,1734607844683,-418.459,0.0002432,2]
[345989020,1734607844694,-194.28559901,0.00024398,2]
[345989021,1734607844703,-161.6490592,0.0002441,2]
[345989022,1734607844712,-1346.05,0.00024654,2]
[345989023,1734607844722,-26919.37978332,0.00024657,3]
[345989024,1734607844731,-150.0,0.00024657,6]
[345989025,1734607844740,-500.0,0.00024657,6]
[345989026,1734607844750,-500.0,0.00024657,6]
[345989027,1734607844759,-500.0,0.00024657,6]
[345989028,1734607844769,-500.0,0.00024657,6]
[345989029,1734607844778,-500.0,0.00024657,6]
[345989030,1734607844788,-500.0,0.00024657,6]
[345989031,1734607844797,-500.0,0.00024657,6]
[345989032,1734607844806,-653.72,0.00024657,6]
[345989033,1734607844816,-500.0,0.00024657,6]
[345989034,1734607844825,-500.0,0.00024657,6]
[345989035,1734607844835,-500.0,0.00024657,6]
[345989036,1734607844844,-718.45,0.00024657,6]
[345989037,1734607844854,-1943.62,0.00024657,2]
[345989038,1734607844864,-3211.41,0.00024657,2]
[345989039,1734607844876,-1020.71,0.00024657,6]
[345989040,1734607844885,-532.97,0.00024657,6]
[345989041,1734607844895,-500.0,0.00024657,6]
[345989042,1734607844905,-500.0,0.00024657,6]
[345989043,1734607844914,-550.34,0.00024657,6]
[345989044,1734607844924,-500.0,0.00024657,6]
[345989045,1734607844933,-500.0,0.00024657,6]
[345989046,1734607844943,-1090.14,0.00024657,6]
[345989047,1734607844953,-500.0,0.00024657,6]
[345989048,1734607844963,-2217.7,0.00024657,6]
[345989049,1734607844973,-500.0,0.00024657,6]
[345989050,1734607844983,-1049.88,0.00024657,6]
[345989051,1734607844992,-500.0,0.00024657,6]
[345989052,1734607845002,-500.0,0.00024657,6]
[345989053,1734607845012,-1544.09,0.00024657,2]
[345989054,1734607845021,-606.03,0.00024657,6]
[345989055,1734607845031,-1000.0,0.00024657,2]
[345989056,1734607845041,-1031.72,0.00024657,2]
[345989057,1734607845051,-500.0,0.00024657,6]
[345989058,1734607845062,-500.0,0.00024657,6]
[345989059,1734607845072,-500.0,0.00024657,6]
[345989060,1734607845081,-500.0,0.00024657,6]
[345989061,1734607845092,-500.0,0.00024657,6]
[345989062,1734607845102,-500.0,0.00024657,6]
[345989063,1734607845112,-596.53815547,0.00024657,6]
[345989064,1734607845122,-1146.84,0.00024657,6]
[345989065,1734607845131,-500.0,0.00024657,6]
[345989066,1734607845141,-534.29,0.00024657,6]
[345989067,1734607845151,-500.0,0.00024657,6]
[345989068,1734607845164,-500.0,0.00024657,6]
[345989069,1734607845173,-500.0,0.00024657,6]
[345989070,1734607845183,-500.0,0.00024657,6]
[345989071,1734607845194,-500.0,0.00024657,6]
[345989072,1734607845204,-6626.31,0.00024657,6]
[345989073,1734607845214,-9577.88,0.00024657,6]
[345989074,1734607845224,-3264.24,0.00024657,6]
[345989075,1734607845235,-27022.87,0.00024657,6]
[345989076,1734607845245,-831.82,0.00024657,6]
[345989077,1734607845255,-1005.53,0.00024657,6]
[345989078,1734607845265,-3728.75,0.00024657,6]
[345989079,1734607845276,-500.0,0.00024657,6]
[345989080,1734607845287,-6674.13,0.00024657,6]
[345989081,1734607845296,-500.0,0.00024657,6]
[345989082,1734607845306,-777.74,0.00024657,6]
[345989083,1734607845315,-3091.76,0.00024657,6]
[345989084,1734607845325,-500.0,0.00024657,6]
[345989085,1734607845335,-966.6,0.00024657,6]
[345989086,1734607845345,-500.0,0.00024657,6]
[345989087,1734607845354,-500.0,0.00024657,6]
[345989088,1734607845364,-573.53,0.00024657,6]
[345989089,1734607845375,-500.0,0.00024657,6]
[345989090,1734607845384,-474.65180775,0.00024657,6]
[345989091,1734607845394,-500.0,0.00024657,6]
[345989092,1734607845403,-500.0,0.00024657,6]
[345989093,1734607845413,-2542.08,0.00024657,6]
[345989094,1734607845423,-500.0,0.00024657,6]
[345989095,1734607845433,-500.0,0.00024657,6]
[345989096,1734607845443,-2240.21,0.00024657,6]
[345989097,1734607845453,-920.71,0.00024657,6]
[345989098,1734607845462,-644.53,0.00024657,6]
[345989099,1734607845472,-500.0,0.00024657,6]
[345989100,1734607845482,-500.0,0.00024657,6]
[345989101,1734607845491,-544.84,0.00024657,6]
[345989102,1734607845501,-760.73,0.00024657,6]
[345989103,1734607845511,-1000.0,0.00024657,2]
[345989104,1734607845520,-500.0,0.00024657,2]
[345989105,1734607845529,-500.0,0.00024657,6]
[345989106,1734607845539,-693.24,0.00024657,6]
[345989107,1734607845548,-500.0,0.00024657,6]
[345989108,1734607845557,-11522.79,0.00024657,6]
[345989109,1734607845567,-500.0,0.00024657,6]
[345989110,1734607845576,-2592.95,0.00024657,2]
[345989111,1734607845586,-500.0,0.00024657,6]
[345989112,1734607845595,-5791.97,0.00024657,6]
[345989113,1734607845605,-500.0,0.00024657,6]
[345989114,1734607845615,-1458.9,0.00024657,6]
[345989115,1734607845626,-671.98,0.00024657,6]
[345989116,1734607845636,-507.8,0.00024657,6]
[345989117,1734607845645,-17002.75,0.00024657,6]
[345989118,1734607845655,-500.0,0.00024657,6]
[345989119,1734607845664,-500.0,0.00024657,2]
[345989120,1734607845673,-500.0,0.00024657,6]
[345989121,1734607845684,-500.0,0.00024657,6]
[345989122,1734607845696,-2867.61,0.00024657,6]
[345989123,1734607845705,-500.0,0.00024657,6]
[345989124,1734607845715,-500.0,0.00024657,2]
[345989125,1734607845724,-1440.03,0.00024657,6]
[345989126,1734607845733,-500.0,0.00024657,6]
[345989127,1734607845743,-9546.23645258,0.000247,3]
[345989128,1734607845752,-587.0,0.0002472,2]
[345989129,1734607845762,-500.0,0.00024773,2]
[345989130,1734607845772,-145062.50156248,0.000248,4]
[345989136,1734607846400,-33069.048125,0.000248,4]
[345989141,1734607994680,199.63,0.00016,2]
[345989146,1734608311239,171.75543,0.00013973,2]
[345989255,1734609032622,-150.0,0.0002,2]
[345989256,1734609032632,-175.17729,0.00020507,2]
[345989257,1734609032642,-3785.16421808,0.00020559,2]
[345989549,1734609038847,-1400.22648892,0.00020559,2]
[345989551,1734609038857,-156.81191579,0.00020953,2]
[345989553,1734609038867,-300.0,0.00021053,2]
[345989555,1734609038876,-300.0,0.00021053,2]
[345989557,1734609038886,-150.0,0.00021054,2]
[345989559,1734609038895,-533.0,0.00021054,2]
[345989561,1734609038905,-2149.0,0.00021054,2]
[345989563,1734609038914,-2366.0,0.00021054,2]
[345989565,1734609038923,-150.0,0.00021054,2]
[345989567,1734609038933,-3936.597891,0.00021163,2]
[345989569,1734609038943,-24900.0,0.00022314,2]
[345989571,1734609038952,-420.0,0.00022899,2]
[345989573,1734609038961,-321.0,0.000231,10]
[345989575,1734609038971,-420.0,0.00023158,2]
[345989577,1734609038980,-152.289,0.00023331,3]
[345989579,1734609038990,-153.0,0.00023331,2]
[345989581,1734609038999,-153.0,0.00023331,2]
[345989583,1734609039009,-153.0,0.00023612,2]
[345989585,1734609039018,-153.0,0.00023612,2]
[345989587,1734609039027,-351.9620625,0.00023841,2]
[345989589,1734609039037,-567.00967977,0.00023999,2]
[345989591,1734609039046,-500.0,0.00023999,2]
[345989593,1734609039055,-500.0,0.00023999,2]
[345989596,1734609039064,-500.0,0.00023999,2]
[345989598,1734609039074,-500.0,0.00023999,2]
[345989601,1734609039084,-500.0,0.00023999,2]
[345989604,1734609039093,-500.0,0.00023999,2]
[345989606,1734609039102,-500.0,0.00023999,2]
[345989609,1734609039112,-500.0,0.00023999,2]
[345989611,1734609039121,-500.0,0.00023999,2]
[345989613,1734609039131,-288.57815426,0.00023999,2]
[345989615,1734609039141,-500.0,0.00023999,2]
[345989617,1734609039150,-500.0,0.00023999,2]
[345989619,1734609039160,-500.0,0.00023999,2]
[345989621,1734609039170,-500.0,0.00023999,2]
[345989623,1734609039183,-500.0,0.00023999,2]
[345989626,1734609039195,-500.0,0.00023999,2]
[345989628,1734609039206,-500.0,0.00023999,2]
[345989630,1734609039218,-500.0,0.00023999,2]
[345989632,1734609039230,-500.0,0.00023999,2]
[345989634,1734609039240,-500.0,0.00023999,2]
[345989637,1734609039251,-500.0,0.00023999,2]
[345989639,1734609039261,-500.0,0.00023999,2]
[345989641,1734609039273,-500.0,0.00023999,2]
[345989643,1734609039284,-500.0,0.00023999,2]
[345989645,1734609039296,-500.0,0.00023999,2]
[345989647,1734609039307,-239.85890603,0.00023999,2]
[345989650,1734609039318,-500.0,0.00023999,2]
[345989652,1734609039329,-500.0,0.00023999,2]
[345989654,1734609039340,-500.0,0.00023999,2]
[345989656,1734609039351,-500.0,0.00023999,2]
[345989659,1734609039363,-500.0,0.00023999,2]
[345989661,1734609039374,-48142.98969463,0.00024,4]
[345989663,1734609039385,-543.63,0.00024,2]
[345989665,1734609039396,-45489.28096987,0.00024,2]
[345989668,1734609039412,-10395.17855543,0.00024,2]
[345989670,1734609039426,-2067.15870651,0.00024,2]
[345989798,1734609040623,-1255.82602925,0.00024,2]
[345989801,1734609040635,-1017.6248285,0.00024,2]
[345989854,1734609043540,-1000.0,0.000232,2]
[345989855,1734609043553,-468.05953236,0.00024,2]
[345989856,1734609043564,-351.9620625,0.00024023,2]
[345989857,1734609043579,-150.0,0.00024054,2]
[345989858,1734609043590,-533.0,0.00024054,2]
[345989859,1734609043600,-2149.0,0.00024054,2]
[345989860,1734609043610,-150.0,0.00024054,2]
[345989861,1734609043620,-2988.45403455,0.00024203,2]
[345990051,1734609234321,171.75543,0.00013973,2]
[345990079,1734610232841,-195.96648776,0.000198,2]
[345990081,1734610232851,-737.92370758,0.000199,2]
[345990083,1734610232861,-300.0,0.00021053,2]
[345990085,1734610232871,-300.0,0.00021053,2]
[345990087,1734610232881,-150.0,0.00021054,2]
[345990089,1734610232890,-2149.0,0.00021054,2]
[345990091,1734610232900,-533.0,0.00021054,2]
[345990093,1734610232909,-2367.0,0.00021054,2]
[345990095,1734610232919,-300.59458217,0.00021054,2]
[345990103,1734610232986,-446.22041783,0.00021054,2]
[345990106,1734610232999,-482.80836457,0.00021641,2]
[345990130,1734610234492,-24417.19163543,0.00021641,2]
[345990131,1734610234504,-269.518729,0.00021683,2]
[345990132,1734610234514,-160.0,0.00022,2]
[345990133,1734610234525,-167.0,0.00022,2]
[345990134,1734610234537,-411.6861664,0.00022064,2]
[345990135,1734610234548,-175.0251619,0.00022173,2]
[345990136,1734610234559,-2781.4055088,0.00022588,2]
[345990137,1734610234570,-710.0479808,0.00022742,2]
[345990138,1734610234581,-420.0,0.00022899,2]
[345990139,1734610234592,-150.0,0.00023,2]
[345990140,1734610234603,-160.0,0.00023014,2]
[345990141,1734610234614,-167.0,0.00023014,2]
[345990142,1734610234624,-305.0,0.000231,10]
[345990143,1734610234636,-420.0,0.00023158,2]
[345990144,1734610234646,-416.29573686,0.0002343,2]
[345990145,1734610234657,-157.485,0.00023484,4]
[345990146,1734610234668,-190.6606073,0.0002353,2]
[345990147,1734610234679,-5359.809793,0.00023678,2]
[345990148,1734610234692,-416.29573684,0.00023708,2]
[345990149,1734610234704,-5359.809793,0.00023875,2]
[345990150,1734610234716,-181.03682095,0.00023898,2]
[345990151,1734610234727,-181.03682094,0.00023899,2]
[345990152,1734610234738,-269.77508116,0.00023899,2]
[345990153,1734610234750,-500.0,0.00023973,2]
[345990154,1734610234761,-500.0,0.00023973,2]
[345990155,1734610234771,-163.15291086,0.00023973,2]
[345990156,1734610234782,-500.0,0.00023973,2]
[345990157,1734610234793,-500.0,0.00023973,2]
[345990158,1734610234803,-500.0,0.00023973,2]
[345990159,1734610234813,-634.16530973,0.00023973,2]
[345990160,1734610234824,-500.0,0.00023973,2]
[345990161,1734610234835,-501.76850793,0.00023973,2]
[345990162,1734610234844,-177.1178819,0.00023973,2]
[345990163,1734610234855,-500.0,0.00023973,2]
[345990164,1734610234865,-501.11402369,0.00023973,2]
[345990165,1734610234876,-500.0,0.00023973,2]
[345990166,1734610234887,-500.0,0.00023973,2]
[345990167,1734610234897,-416.29573684,0.00023986,2]
[345990168,1734610234907,-500.0,0.00023998,2]
[345990169,1734610234922,-608.0933036,0.00023998,2]
[345990170,1734610234932,-500.0,0.00023998,2]
[345990171,1734610234941,-500.0,0.00023998,2]
[345990172,1734610235144,-535.14517365,0.00023998,2]
[345990173,1734610235157,-197.32604464,0.00023998,2]
[345990174,1734610235168,-500.0,0.00023998,2]
[345990175,1734610235177,-500.0,0.00023998,2]
[345990176,1734610235188,-500.0,0.00023998,2]
[345990177,1734610235198,-500.0,0.00023998,2]
[345990178,1734610235207,-500.0,0.00023998,2]
[345990179,1734610235216,-500.0,0.00023998,2]
[345990180,1734610235225,-500.0,0.00023998,2]
[345990181,1734610235234,-500.0,0.00023998,2]
[345990182,1734610235243,-500.0,0.00023998,2]
[345990183,1734610235253,-228.49350666,0.00023998,2]
[345990184,1734610235262,-500.0,0.00023998,2]
[345990185,1734610235271,-500.0,0.00023998,2]
[345990186,1734610235280,-584.00956483,0.00023998,2]
[345990187,1734610235289,-500.0,0.00023998,2]
[345990188,1734610235298,-500.0,0.00023998,2]
[345990189,1734610235307,-500.0,0.00023998,2]
[345990190,1734610235316,-1289.96,0.00023998,2]
[345990191,1734610235325,-311.07187222,0.00023998,2]
[345990192,1734610235335,-243.71529315,0.00023998,2]
[345990193,1734610235345,-11498.60044137,0.00023999,2]
[345990194,1734610235353,-23864.64281411,0.00023999,2]
[345990195,1734610235526,-439.565,0.00023998,2]
[345990224,1734610238839,-60.435,0.00023998,2]
[345990226,1734610238849,-500.0,0.00023998,2]
[345990228,1734610238858,-500.0,0.00023998,2]
[345990230,1734610238867,-500.0,0.00023998,2]
[345990232,1734610238876,-500.0,0.00023998,2]
[345990233,1734610238886,-500.0,0.00023998,2]
[345990235,1734610238895,-500.0,0.00023998,2]
[345990237,1734610238904,-162.6953706,0.00023998,2]
[345990239,1734610238913,-500.0,0.00023998,2]
[345990240,1734610238923,-500.0,0.00023998,2]
[345990241,1734610238934,-500.0,0.00023998,2]
[345990242,1734610238943,-500.0,0.00023998,2]
[345990243,1734610238955,-500.0,0.00023998,2]
[345990244,1734610238967,-500.0,0.00023998,2]
[345990245,1734610238977,-19.43092613,0.00023998,2]
[345990246,1734610238991,-480.56907387,0.00023998,2]
[345990247,1734610239000,-500.0,0.00023998,2]
[345990249,1734610239009,-251.73852309,0.00023998,2]
[345990250,1734610239020,-160.45187664,0.00023998,2]
[345990317,1734610243722,-339.54812336,0.00023998,2]
[345990319,1734610243732,-500.0,0.00023998,2]
[345990321,1734610243741,-500.0,0.00023998,2]
[345990322,1734610243750,-500.0,0.00023998,2]
[345990324,1734610243760,-500.0,0.00023998,2]
[345990326,1734610243769,-500.0,0.00023998,2]
[345990328,1734610243778,-500.0,0.00023998,2]
[345990330,1734610243788,-500.0,0.00023998,2]
[345990332,1734610243797,-10.45187664,0.00023998,2]
[345990429,1734610514923,171.75543,0.00013973,2]
[345990437,1734611234116,-329.92685442,0.00020959,2]
[345990446,1734611408440,171.75543,0.00013973,2]
[345990493,1734611432050,-152.4950601,0.0002,7]
[345990494,1734611432060,-194.42585979,0.00021151,2]
[345990496,1734611432070,-300.0,0.00021251,2]
[345990498,1734611432080,-300.0,0.00021251,2]
[345990500,1734611432090,-533.0,0.00021252,2]
[345990502,1734611432099,-480.47908011,0.00021252,2]
[345990504,1734611432114,-659.579,0.00021252,2]
[345990659,1734611437977,-4833.8596399,0.00020959,2]
[345990660,1734611437987,-1008.94191989,0.00021252,2]
[345990661,1734611437997,-2367.0,0.00021252,2]
[345990662,1734611438007,-194.42585979,0.0002233,2]
[345990663,1734611438016,-319.0263002,0.00022399,2]
[345990664,1734611438026,-8020.12060956,0.00022402,2]
[345990698,1734611445943,-150.0,0.00021192,2]
[345990699,1734611445954,-16879.87939044,0.00022402,2]
[345990700,1734611445964,-250.0,0.0002243,2]
[345990701,1734611445973,-391.5289171,0.00022461,2]
[345990702,1734611445983,-269.5187306,0.00022501,2]
[345990703,1734611445992,-26726.23296304,0.0002298,10]
[345990706,1734611485269,25500.33,0.000162,2]
[345990790,1734612632093,-954.9797394,0.0001764,2]
[345990791,1734612632105,-4045.0202606,0.0001764,2]
[345990792,1734612632115,-3824.44793618,0.00017818,2]
[345990794,1734612632203,-1175.55206382,0.00017818,2]
[345990796,1734612632213,-300.0,0.00019887,2]
[345990797,1734612632223,-300.0,0.00019888,2]
[345990799,1734612632232,-329.92685442,0.000199,2]
[345990800,1734612632242,-3158.8394003,0.00020854,2]
[345990801,1734612632251,-214.4261398,0.000209,2]
[345990802,1734612632260,-533.0,0.00021202,2]
[345990803,1734612632270,-2149.0,0.00021202,2]
[345990804,1734612632281,-2367.0,0.00021202,2]
[345990805,1734612632291,-150.635,0.00021202,2]
[345990806,1734612632300,-10904.3250789,0.00021394,2]
[345990807,1734612632310,-605.45815172,0.00021559,2]
[345990808,1734612632318,-420.0,0.00021657,2]
[345990809,1734612632327,-420.0,0.00021877,2]
[345990810,1734612632337,-417.22270697,0.000219,2]
[345990811,1734612632346,-217.75031055,0.00021999,2]
[345990812,1734612632356,-170.6007052,0.00021999,2]
[345990813,1734612632365,-195241.76163072,0.00022,2]
[345990814,1734612632374,-6502.71653324,0.00022,2]
[345990815,1734612632387,-112142.56152574,0.00022,2]
[345990816,1734612632396,-605.45815171,0.00022104,2]
[345990817,1734612632406,-2000.0,0.000223,2]
[345990818,1734612632415,-155.44271235,0.00022548,2]
[345990819,1734612632424,-605.45815171,0.00022648,2]
[345990820,1734612632433,-155.44271235,0.00022658,2]
[345990821,1734612632443,-155.44271235,0.00022767,2]
[345990822,1734612632452,-379.51885374,0.00022879,2]
[345990823,1734612632462,-379.51885371,0.00022882,2]
[345990824,1734612632471,-379.51885371,0.00022885,2]
[345990825,1734612632481,-379.51885371,0.00022887,2]
[345990826,1734612632491,-379.51885371,0.0002289,2]
[345990827,1734612632500,-2452.2554874,0.000229,2]
[345990828,1734612632509,-155.44271235,0.00022904,2]
[345990829,1734612632519,-187.0853055,0.00022956,2]
[345990830,1734612632528,-173.17068967,0.00022973,2]
[345990831,1734612632537,-506.63000987,0.00022973,2]
[345990832,1734612632546,-273.0346183,0.00022973,2]
[345990833,1734612632556,-500.0,0.00022973,2]
[345990834,1734612632566,-606.8085543,0.00022973,2]
[345990835,1734612632575,-500.66116952,0.00022973,2]
[345990836,1734612632584,-366.4127672,0.00022973,2]
[345990837,1734612632593,-500.0,0.00022973,2]
[345990838,1734612632602,-156.494,0.00022973,2]
[345990839,1734612632616,-527.97094701,0.00022978,2]
[345990840,1734612632625,-348.11452924,0.00022978,2]
[345990841,1734612632638,-500.0,0.00022978,2]
[345990842,1734612632647,-500.0,0.00022978,2]
[345990843,1734612632656,-500.0,0.00022978,2]
[345990844,1734612632666,-500.0,0.00022978,2]
[345990845,1734612632675,-500.0,0.00022978,2]
[345990846,1734612632685,-500.0,0.00022978,2]
[345990847,1734612632699,-500.0,0.00022978,2]
[345990848,1734612632708,-500.0,0.00022978,2]
[345990849,1734612632717,-500.0,0.00022978,2]